[Event "South Island Championships 2023"]
[Site "Oamaru, New Zealand"]
[Date "2023.09.27"]
[Round "1.10"]
[White "Zhang, Kendrick Botong"]
[Black "Bell, Daniel"]
[Result "1/2-1/2"]
[TimeControl "90 + 30"]
[WhiteFideId "4307704"]
[BlackFideId "4319427"]
[WhiteElo "2067"]
[BlackElo "1565"]

1. e4 {[%clk 01:30:56]} {[%emt 00:00:03]} c6 {[%clk 01:30:53]} {[%emt
00:00:09]} 2. d4 {[%clk 01:31:22]} {[%emt 00:00:03]} d5 {[%clk 01:31:18]}
{[%emt 00:00:06]} 3. e5 {[%clk 01:31:45]} {[%emt 00:00:06]} Bf5 {[%clk
01:31:18]} {[%emt 00:00:31]} 4. Nd2 {[%clk 01:32:01]} {[%emt 00:00:14]} e6
{[%clk 01:31:33]} {[%emt 00:00:15]} 5. Nb3 {[%clk 01:32:25]} {[%emt 00:00:05]}
Nd7 {[%clk 01:31:28]} {[%emt 00:00:35]} 6. Nf3 {[%clk 01:32:26]} {[%emt
00:00:28]} Qc7 {[%clk 01:30:24]} {[%emt 00:01:35]} 7. Be2 {[%clk 01:17:12]}
{[%emt 00:15:43]} c5 {[%clk 01:29:50]} {[%emt 00:01:05]} 8. Nxc5 {[%clk
01:13:25]} {[%emt 00:04:17]} Bxc5 {[%clk 01:26:48]} {[%emt 00:03:32]} 9. dxc5
{[%clk 01:13:45]} {[%emt 00:00:10]} Nxc5 {[%clk 01:23:23]} {[%emt 00:03:55]} 10.
Be3 {[%clk 01:07:41]} {[%emt 00:06:34]} Ne7 {[%clk 01:22:52]} {[%emt 00:01:02]}
11. Nd4 {[%clk 00:43:47]} {[%emt 00:24:24]} a6 {[%clk 01:15:30]} {[%emt
00:07:52]} 12. O-O {[%clk 00:37:53]} {[%emt 00:06:24]} O-O {[%clk 01:13:36]}
{[%emt 00:02:23]} 13. c3 {[%clk 00:36:42]} {[%emt 00:01:41]} Rac8 {[%clk
01:10:01]} {[%emt 00:04:06]} 14. f4 {[%clk 00:36:23]} {[%emt 00:00:48]} h6
{[%clk 01:10:00]} {[%emt 00:00:31]} 15. g4 {[%clk 00:30:27]} {[%emt 00:06:26]}
Be4 {[%clk 01:07:34]} {[%emt 00:02:56]} 16. Rc1 {[%clk 00:27:50]} {[%emt
00:03:07]} b5 {[%clk 01:05:56]} {[%emt 00:02:08]} 17. Nb3 {[%clk 00:27:34]}
{[%emt 00:00:46]} Nd7 {[%clk 01:02:30]} {[%emt 00:03:56]} 18. a4 {[%clk
00:24:24]} {[%emt 00:03:40]} bxa4 {[%clk 00:58:39]} {[%emt 00:04:21]} 19. Nd2
{[%clk 00:23:50]} {[%emt 00:01:04]} Nc5 {[%clk 00:56:33]} {[%emt 00:02:36]} 20.
Nxe4 {[%clk 00:16:14]} {[%emt 00:08:07]} dxe4 {[%clk 00:55:47]} {[%emt
00:01:15]} 21. c4 {[%clk 00:10:23]} {[%emt 00:06:21]} Rfd8 {[%clk 00:55:52]}
{[%emt 00:00:26]} 22. Qc2 {[%clk 00:09:55]} {[%emt 00:00:58]} Nb3 {[%clk
00:53:44]} {[%emt 00:02:38]} 23. Rcd1 {[%clk 00:09:35]} {[%emt 00:00:49]} Nd5
{[%clk 00:53:41]} {[%emt 00:00:33]} 24. Qxe4 {[%clk 00:07:22]} {[%emt
00:02:42]} Nxe3 {[%clk 00:53:20]} {[%emt 00:00:53]} 25. Qxe3 {[%clk 00:07:33]}
{[%emt 00:00:18]} Qc5 {[%clk 00:53:26]} {[%emt 00:00:25]} 26. Qxc5 {[%clk
00:06:55]} {[%emt 00:01:08]} Nxc5 {[%clk 00:53:46]} {[%emt 00:00:10]} 27. Kf2
{[%clk 00:01:02]} {[%emt 00:06:22]} Rb8 {[%clk 00:52:37]} {[%emt 00:01:39]} 28.
Rxd8+ {[%clk 00:00:59]} {[%emt 00:00:33]} Rxd8 {[%clk 00:53:00]} {[%emt
00:00:07]} 29. Ke3 {[%clk 00:01:25]} {[%emt 00:00:04]} Rb8 {[%clk 00:52:46]}
{[%emt 00:00:44]} 30. Rb1 {[%clk 00:01:29]} {[%emt 00:00:26]} Rb3+ {[%clk
00:52:55]} {[%emt 00:00:21]} 31. Kd4 {[%clk 00:01:48]} {[%emt 00:00:12]} Nd7
{[%clk 00:52:21]} {[%emt 00:01:03]} 32. Bd1 {[%clk 00:01:26]} {[%emt 00:00:52]}
Rb4 {[%clk 00:50:56]} {[%emt 00:01:55]} 33. Kc3 {[%clk 00:01:49]} {[%emt
00:00:07]} a5 {[%clk 00:51:01]} {[%emt 00:00:26]} 34. Bc2 {[%clk 00:01:19]}
{[%emt 00:00:59]} Nb6 {[%clk 00:50:26]} {[%emt 00:01:05]} 35. Bd3 {[%clk
00:01:07]} {[%emt 00:00:42]} Nd7 {[%clk 00:46:14]} {[%emt 00:04:43]} 36. Kd4
{[%clk 00:00:44]} {[%emt 00:00:53]} Kf8 {[%clk 00:45:15]} {[%emt 00:01:29]} 37.
Bc2 {[%clk 00:00:32]} {[%emt 00:00:42]} Nb6 {[%clk 00:45:24]} {[%emt 00:00:21]}
38. Bd3 {[%clk 00:00:36]} {[%emt 00:00:26]} Nd5 {[%clk 00:43:16]} {[%emt
00:02:37]} 39. f5 {[%clk 00:00:45]} {[%emt 00:00:21]} Ke7 {[%clk 00:42:09]}
{[%emt 00:01:38]} 40. fxe6 {[%clk 00:00:43]} {[%emt 00:00:32]} fxe6 {[%clk
00:42:10]} {[%emt 00:00:28]} 41. Bc2 {[%clk 00:00:33]} {[%emt 00:00:41]} Nb6
{[%clk 00:42:11]} {[%emt 00:00:28]} 42. Bd3 {[%clk 00:00:34]} {[%emt 00:00:29]}
Nd7 {[%clk 00:41:47]} {[%emt 00:00:54]} 43. Bc2 {[%clk 00:00:32]} {[%emt
00:00:32]} Nb6 {[%clk 00:42:08]} {[%emt 00:00:09]} 44. Bd3 {[%clk 00:00:42]}
{[%emt 00:00:20]} Nd7 {[%clk 00:42:30]} {[%emt 00:00:09]} 45. Be2 {[%clk
00:00:44]} {[%emt 00:00:27]} Nb6 {[%clk 00:40:45]} {[%emt 00:02:15]} 46. Bf1
{[%clk 00:00:32]} {[%emt 00:00:42]} a3 {[%clk 00:34:41]} {[%emt 00:11:14]} 47.
b3 {[%clk 00:00:32]} a2 {[%clk 00:33:26]} 48. Ra1 {[%clk 00:00:56]} Rxb3 {[%clk
00:33:37]} 49. Rxa2 {[%clk 00:01:08]} a4 {[%clk 00:32:31]} 50. Bd3 {[%clk
00:00:37]} {[%emt 00:00:55]} a3 {[%clk 00:31:01]} {[%emt 00:02:01]} 51. Be4
{[%clk 00:00:35]} {[%emt 00:00:31]} Nd7 {[%clk 00:30:22]} {[%emt 00:01:08]} 52.
Bc6 {[%clk 00:00:39]} {[%emt 00:00:27]} Nb6 {[%clk 00:29:03]} {[%emt 00:01:50]}
53. Bb5 {[%clk 00:00:34]} {[%emt 00:00:34]} Nd7 {[%clk 00:27:46]} {[%emt
00:01:47]} 54. Ba4 {[%clk 00:00:37]} {[%emt 00:00:27]} Rh3 {[%clk 00:27:57]}
{[%emt 00:00:19]} 55. Bb5 {[%clk 00:00:31]} {[%emt 00:00:37]} Rb3 {[%clk
00:26:15]} {[%emt 00:02:11]} 56. Bc6 {[%clk 00:00:41]} {[%emt 00:00:21]} Nb8
{[%clk 00:25:32]} {[%emt 00:01:13]} 57. Ba4 {[%clk 00:00:46]} {[%emt 00:00:25]}
Rf3 {[%clk 00:25:37]} {[%emt 00:00:24]} 58. Bd1 {[%clk 00:00:46]} {[%emt
00:00:31]} Rf4+ {[%clk 00:24:45]} {[%emt 00:01:21]} 59. Kc3 {[%clk 00:00:37]}
{[%emt 00:00:39]} Nc6 {[%clk 00:24:43]} {[%emt 00:00:33]} 60. Rxa3 {[%clk
00:00:53]} {[%emt 00:00:14]} Nxe5 {[%clk 00:24:52]} {[%emt 00:00:20]} 61. Be2
{[%clk 00:00:39]} {[%emt 00:00:44]} 1/2-1/2

[Event "South Island Championships 2023"]
[Site "Oamaru, New Zealand"]
[Date "2023.09.27"]
[Round "1.2"]
[White "McNabb, Matthew D"]
[Black "Ashe, Michael"]
[Result "1-0"]
[TimeControl "90 + 30"]
[WhiteFideId "4300823"]
[BlackFideId "4310462"]
[WhiteElo "2236"]
[BlackElo "1707"]

1. d4 {[%clk 01:30:57]} {[%emt 00:00:02]} Nf6 {[%clk 01:30:47]} {[%emt
00:00:13]} 2. c4 {[%clk 01:31:24]} {[%emt 00:00:03]} e6 {[%clk 01:31:08]}
{[%emt 00:00:09]} 3. Nc3 {[%clk 01:31:49]} {[%emt 00:00:05]} Bb4 {[%clk
01:31:30]} {[%emt 00:00:07]} 4. a3 {[%clk 01:32:14]} {[%emt 00:00:07]} Bxc3+
{[%clk 01:31:52]} {[%emt 00:00:07]} 5. bxc3 {[%clk 01:32:42]} {[%emt 00:00:02]}
O-O {[%clk 01:31:25]} {[%emt 00:00:57]} 6. f3 {[%clk 01:32:59]} {[%emt
00:00:13]} b6 {[%clk 01:29:40]} {[%emt 00:02:15]} 7. e4 {[%clk 01:32:32]}
{[%emt 00:00:56]} Ba6 {[%clk 01:26:42]} {[%emt 00:03:29]} 8. Bg5 {[%clk
01:22:13]} {[%emt 00:10:49]} d6 {[%clk 01:23:15]} {[%emt 00:03:56]} 9. Bd3
{[%clk 01:21:28]} {[%emt 00:01:15]} e5 {[%clk 01:21:47]} {[%emt 00:01:58]} 10.
Ne2 {[%clk 01:21:25]} {[%emt 00:00:34]} Nbd7 {[%clk 01:20:11]} {[%emt
00:02:05]} 11. Qa4 {[%clk 01:04:16]} {[%emt 00:17:40]} Bb7 {[%clk 01:10:41]}
{[%emt 00:09:58]} 12. Rd1 {[%clk 00:59:49]} {[%emt 00:04:59]} a5 {[%clk
01:05:34]} {[%emt 00:05:37]} 13. Ng3 {[%clk 00:57:10]} {[%emt 00:03:09]} h6
{[%clk 01:05:15]} {[%emt 00:00:48]} 14. Bc1 {[%clk 00:54:37]} {[%emt 00:03:04]}
Re8 {[%clk 01:03:03]} {[%emt 00:02:41]} 15. O-O {[%clk 00:54:16]} {[%emt
00:00:52]} Nf8 {[%clk 01:02:32]} {[%emt 00:01:00]} 16. c5 {[%clk 00:44:25]}
{[%emt 00:10:22]} Ba6 {[%clk 00:57:50]} {[%emt 00:05:11]} 17. Bxa6 {[%clk
00:37:49]} {[%emt 00:07:07]} Rxa6 {[%clk 00:58:06]} {[%emt 00:00:14]} 18. cxd6
{[%clk 00:36:14]} {[%emt 00:02:04]} Qxd6 {[%clk 00:51:55]} {[%emt 00:06:42]} 19.
Nf5 {[%clk 00:32:20]} {[%emt 00:04:24]} Qd7 {[%clk 00:50:10]} {[%emt 00:02:14]}
20. Qc2 {[%clk 00:29:10]} {[%emt 00:03:41]} Qc8 {[%clk 00:45:52]} {[%emt
00:04:46]} 21. dxe5 {[%clk 00:20:25]} {[%emt 00:09:17]} Rxe5 {[%clk 00:45:55]}
{[%emt 00:00:26]} 22. c4 {[%clk 00:20:16]} {[%emt 00:00:40]} Ng6 {[%clk
00:44:18]} {[%emt 00:02:07]} 23. Bb2 {[%clk 00:20:28]} {[%emt 00:00:18]} Re6
{[%clk 00:42:14]} {[%emt 00:02:33]} 24. Rd2 {[%clk 00:17:14]} {[%emt 00:03:44]}
Ra8 {[%clk 00:35:48]} {[%emt 00:06:56]} 25. Rfd1 {[%clk 00:17:12]} {[%emt
00:00:32]} Qe8 {[%clk 00:32:21]} {[%emt 00:03:57]} 26. Bc3 {[%clk 00:14:19]}
{[%emt 00:03:24]} Ne5 {[%clk 00:22:30]} {[%emt 00:10:21]} 27. Bxe5 {[%clk
00:09:47]} {[%emt 00:05:02]} Rxe5 {[%clk 00:22:20]} {[%emt 00:00:39]} 28. Qc3
{[%clk 00:09:40]} {[%emt 00:00:38]} Rc5 {[%clk 00:16:42]} {[%emt 00:06:07]} 29.
Nxh6+ {[%clk 00:09:16]} {[%emt 00:00:54]} Kh7 {[%clk 00:11:13]} {[%emt
00:12:58]} 30. Nf5 {[%clk 00:09:24]} Qe6 {[%clk 00:10:46]} 31. Rd4 {[%clk
00:05:08]} g6 {[%clk 00:07:44]} {[%emt 00:02:39]} 32. Ne3 {[%clk 00:05:27]}
{[%emt 00:00:11]} c6 {[%clk 00:06:24]} {[%emt 00:01:50]} 33. Rd6 {[%clk
00:04:41]} {[%emt 00:01:16]} 1-0

[Event "South Island Championships 2023"]
[Site "Oamaru, New Zealand"]
[Date "2023.09.27"]
[Round "1.6"]
[White "Liu, William Rui"]
[Black "Wilson, Dion A"]
[Result "1-0"]
[TimeControl "90 + 30"]
[WhiteFideId "4313593"]
[BlackFideId "4321413"]
[WhiteElo "2094"]
[BlackElo "1611"]

1. e4 {[%clk 01:30:56]} {[%emt 00:00:02]} d5 {[%clk 01:30:48]} {[%emt
00:00:13]} 2. exd5 {[%clk 01:31:12]} {[%emt 00:00:15]} Qxd5 {[%clk 01:30:57]}
{[%emt 00:00:19]} 3. Nc3 {[%clk 01:31:34]} {[%emt 00:00:09]} Qd8 {[%clk
01:31:06]} {[%emt 00:00:21]} 4. d4 {[%clk 01:31:44]} {[%emt 00:00:21]} Nf6
{[%clk 01:31:08]} {[%emt 00:00:27]} 5. Bc4 {[%clk 01:31:47]} {[%emt 00:00:28]}
c6 {[%clk 01:30:32]} {[%emt 00:01:06]} 6. Nf3 {[%clk 01:31:49]} {[%emt
00:00:27]} Bf5 {[%clk 01:29:29]} {[%emt 00:01:33]} 7. Ne5 {[%clk 01:31:04]}
{[%emt 00:01:15]} e6 {[%clk 01:28:28]} {[%emt 00:01:31]} 8. g4 {[%clk
01:30:43]} {[%emt 00:00:51]} Be4 {[%clk 01:23:39]} {[%emt 00:05:18]} 9. Nxe4
{[%clk 01:29:20]} {[%emt 00:01:54]} Nxe4 {[%clk 01:23:46]} {[%emt 00:00:22]} 10.
Be3 {[%clk 01:27:12]} {[%emt 00:02:39]} Bb4+ {[%clk 01:21:13]} {[%emt
00:03:03]} 11. c3 {[%clk 01:27:02]} {[%emt 00:00:41]} Nxc3 {[%clk 01:20:19]}
{[%emt 00:01:23]} 12. bxc3 {[%clk 01:27:17]} {[%emt 00:00:16]} Bxc3+ {[%clk
01:20:03]} {[%emt 00:00:45]} 13. Ke2 {[%clk 01:26:43]} {[%emt 00:01:04]} Bxa1
{[%clk 01:19:52]} {[%emt 00:00:41]} 14. Qxa1 {[%clk 01:26:59]} {[%emt
00:00:15]} Nd7 {[%clk 01:17:36]} {[%emt 00:02:45]} 15. Rd1 {[%clk 01:25:02]}
{[%emt 00:02:26]} Nb6 {[%clk 01:15:21]} {[%emt 00:02:46]} 16. Bb3 {[%clk
01:22:49]} {[%emt 00:02:43]} Nd5 {[%clk 01:13:43]} {[%emt 00:02:08]} 17. Bxd5
{[%clk 01:20:02]} {[%emt 00:03:17]} cxd5 {[%clk 01:12:14]} {[%emt 00:01:58]} 18.
Qb2 {[%clk 01:19:22]} {[%emt 00:01:11]} Qb6 {[%clk 01:09:23]} {[%emt 00:03:21]}
19. Qa3 {[%clk 01:19:25]} {[%emt 00:00:27]} f6 {[%clk 01:06:40]} {[%emt
00:03:13]} 20. Qa4+ {[%clk 01:18:44]} {[%emt 00:01:10]} Kd8 {[%clk 01:01:21]}
{[%emt 00:05:49]} 21. Qd7# {[%clk 01:19:06]} {[%emt 00:00:09]} 1-0

[Event "South Island Championships 2023"]
[Site "Oamaru, New Zealand"]
[Date "2023.09.27"]
[Round "1.5"]
[White "Tao, Junqing Jerome"]
[Black "Cummings, Nick"]
[Result "0-1"]
[TimeControl "90 + 30"]
[WhiteFideId "4313895"]
[BlackFideId "4301218"]
[WhiteElo "1634"]
[BlackElo "2094"]

1. e4 {[%clk 01:30:59]} c6 {[%clk 01:30:56]} {[%emt 00:00:04]} 2. d4 {[%clk
01:31:23]} {[%emt 00:00:06]} d5 {[%clk 01:31:14]} {[%emt 00:00:12]} 3. Nd2
{[%clk 01:31:42]} {[%emt 00:00:11]} dxe4 {[%clk 01:31:37]} {[%emt 00:00:08]} 4.
Nxe4 {[%clk 01:32:07]} {[%emt 00:00:04]} Nf6 {[%clk 01:32:00]} {[%emt
00:00:07]} 5. Nxf6+ {[%clk 01:32:26]} {[%emt 00:00:11]} exf6 {[%clk 01:32:29]}
{[%emt 00:00:01]} 6. Nf3 {[%clk 01:32:45]} {[%emt 00:00:12]} Bd6 {[%clk
01:32:41]} {[%emt 00:00:16]} 7. Bd3 {[%clk 01:32:59]} {[%emt 00:00:17]} O-O
{[%clk 01:32:53]} {[%emt 00:00:18]} 8. O-O {[%clk 01:33:26]} {[%emt 00:00:03]}
Re8 {[%clk 01:32:49]} {[%emt 00:00:34]} 9. h3 {[%clk 01:33:18]} {[%emt
00:00:39]} Be6 {[%clk 01:29:02]} {[%emt 00:04:16]} 10. c3 {[%clk 01:33:29]}
{[%emt 00:00:20]} Nd7 {[%clk 01:29:23]} {[%emt 00:00:09]} 11. Qc2 {[%clk
01:33:54]} {[%emt 00:00:04]} Nf8 {[%clk 01:29:39]} {[%emt 00:00:14]} 12. Be3
{[%emt 00:01:15]} Qd7 {[%clk 01:29:26]} {[%emt 00:00:40]} 13. Qd2 {[%clk
01:32:09]} {[%emt 00:01:33]} Bxh3 {[%clk 01:21:26]} {[%emt 00:08:30]} 14. gxh3
{[%clk 01:31:07]} {[%emt 00:01:31]} Qxh3 {[%clk 01:21:32]} {[%emt 00:00:24]} 15.
Bf4 {[%clk 01:30:36]} {[%emt 00:01:02]} Qg4+ {[%clk 01:13:10]} {[%emt
00:08:52]} 16. Bg3 {[%clk 01:31:02]} {[%emt 00:00:04]} Bxg3 {[%clk 01:07:34]}
{[%emt 00:06:06]} 17. fxg3 {[%clk 01:31:24]} {[%emt 00:00:07]} Qxg3+ {[%clk
01:07:18]} {[%emt 00:00:47]} 18. Qg2 {[%clk 01:31:49]} {[%emt 00:00:05]} Qd6
{[%clk 01:06:29]} {[%emt 00:01:19]} 19. Rfe1 {[%clk 01:31:19]} {[%emt
00:01:00]} Ne6 {[%clk 00:57:06]} {[%emt 00:09:52]} 20. Qh3 {[%clk 01:27:37]}
{[%emt 00:04:12]} g6 {[%clk 00:56:10]} {[%emt 00:01:26]} 21. Bc4 {[%clk
01:26:47]} {[%emt 00:01:21]} Nf4 {[%clk 00:54:32]} {[%emt 00:02:08]} 22. Qg4
{[%clk 01:25:39]} {[%emt 00:01:39]} h5 {[%clk 00:45:38]} {[%emt 00:09:21]} 23.
Qh4 {[%clk 01:25:20]} {[%emt 00:00:50]} g5 {[%clk 00:43:51]} {[%emt 00:02:18]}
24. Qh2 {[%clk 01:24:58]} {[%emt 00:00:52]} Qd7 {[%clk 00:41:24]} {[%emt
00:02:56]} 25. Kf2 {[%clk 01:23:26]} {[%emt 00:02:03]} Qf5 {[%clk 00:37:53]}
{[%emt 00:04:00]} 26. Kf1 {[%clk 01:22:06]} {[%emt 00:01:51]} Nd3 {[%clk
00:29:42]} {[%emt 00:08:41]} 27. Rxe8+ {[%clk 01:21:53]} {[%emt 00:00:44]} Rxe8
{[%clk 00:30:05]} {[%emt 00:00:06]} 28. Qxh5 {[%clk 01:22:21]} {[%emt
00:00:02]} Re7 {[%clk 00:29:08]} {[%emt 00:01:27]} 29. b4 {[%clk 01:20:33]}
{[%emt 00:02:19]} b5 {[%clk 00:25:32]} {[%emt 00:04:05]} 30. Bb3 {[%clk
01:19:50]} {[%emt 00:01:13]} Nf4 {[%clk 00:22:33]} {[%emt 00:03:28]} 31. Qh1
{[%clk 01:18:50]} {[%emt 00:01:30]} Qd3+ {[%clk 00:21:33]} {[%emt 00:01:30]} 32.
Kg1 {[%clk 01:19:05]} {[%emt 00:00:15]} Re2 {[%clk 00:16:21]} {[%emt 00:05:43]}
33. Rd1 {[%clk 01:18:21]} {[%emt 00:01:14]} Qe3+ {[%clk 00:16:14]} {[%emt
00:00:37]} 34. Kf1 {[%clk 01:18:41]} {[%emt 00:00:10]} Qf2# {[%clk 00:16:08]}
{[%emt 00:00:04]} 0-1

[Event "South Island Championships 2023"]
[Site "Oamaru, New Zealand"]
[Date "2023.09.27"]
[Round "2.11"]
[White "Coleman, Phil"]
[Black "Lee, Dylan E S"]
[Result "0-1"]
[TimeControl "90 + 30"]
[WhiteFideId "4319443"]
[BlackFideId "4310098"]
[WhiteElo "1872"]
[BlackElo "1192"]

1. e4 {[%clk 01:30:55]} {[%emt 00:00:03]} c6 {[%clk 01:30:57]} {[%emt
00:00:04]} 2. Nf3 {[%clk 01:31:14]} {[%emt 00:00:11]} d5 {[%clk 01:31:13]}
{[%emt 00:00:14]} 3. Nc3 {[%clk 01:31:37]} {[%emt 00:00:08]} dxe4 {[%clk
01:31:31]} {[%emt 00:00:11]} 4. Nxe4 {[%clk 01:31:55]} {[%emt 00:00:12]} Nf6
{[%clk 01:31:51]} {[%emt 00:00:11]} 5. Neg5 {[%clk 01:31:44]} {[%emt 00:00:41]}
h6 {[%clk 01:30:52]} {[%emt 00:01:28]} 6. Nh3 {[%clk 01:31:10]} {[%emt
00:01:04]} Bxh3 {[%clk 01:31:08]} {[%emt 00:00:13]} 7. gxh3 {[%clk 01:31:33]}
{[%emt 00:00:07]} e6 {[%clk 01:31:28]} {[%emt 00:00:10]} 8. d4 {[%clk
01:27:45]} {[%emt 00:04:19]} Bd6 {[%clk 01:30:53]} {[%emt 00:01:05]} 9. Bd3
{[%clk 01:24:11]} {[%emt 00:04:03]} Nbd7 {[%clk 01:29:57]} {[%emt 00:01:27]} 10.
Bd2 {[%clk 01:19:17]} {[%emt 00:05:24]} Qb6 {[%clk 01:26:13]} {[%emt 00:04:14]}
11. b3 {[%clk 01:16:06]} {[%emt 00:03:40]} O-O-O {[%clk 01:23:18]} {[%emt
00:03:25]} 12. a4 {[%clk 01:12:00]} {[%emt 00:04:37]} e5 {[%clk 01:21:40]}
{[%emt 00:02:08]} 13. a5 {[%clk 01:07:57]} {[%emt 00:04:32]} Qc7 {[%clk
01:21:53]} {[%emt 00:00:17]} 14. dxe5 {[%clk 00:56:53]} {[%emt 00:11:33]} Nxe5
{[%clk 01:22:13]} {[%emt 00:00:10]} 15. Be3 {[%clk 00:50:07]} {[%emt 00:07:16]}
Nxd3+ {[%clk 01:20:50]} {[%emt 00:01:54]} 16. cxd3 {[%clk 00:49:36]} {[%emt
00:01:01]} Bb4+ {[%clk 01:20:37]} {[%emt 00:00:42]} 17. Kf1 {[%clk 00:48:38]}
{[%emt 00:01:28]} Nd5 {[%emt 00:01:44]} 18. Bxa7 {[%clk 00:45:50]} {[%emt
00:03:16]} Bxa5 {[%clk 01:16:06]} {[%emt 00:03:51]} 19. Bd4 {[%clk 00:43:01]}
{[%emt 00:03:18]} f6 {[%clk 01:14:10]} {[%emt 00:02:26]} 20. Nh4 {[%clk
00:37:09]} {[%emt 00:06:20]} Rhe8 {[%clk 01:09:40]} {[%emt 00:05:01]} 21. Qg4+
{[%clk 00:34:09]} {[%emt 00:03:30]} Kb8 {[%clk 01:07:58]} {[%emt 00:02:13]} 22.
Nf5 {[%clk 00:31:56]} {[%emt 00:02:42]} c5 {[%clk 01:03:43]} {[%emt 00:04:46]}
23. Bb2 {[%clk 00:29:14]} {[%emt 00:03:12]} Rd7 {[%clk 00:52:43]} {[%emt
00:11:30]} 24. Qa4 {[%clk 00:27:22]} {[%emt 00:02:23]} b6 {[%clk 00:52:34]}
{[%emt 00:00:38]} 25. Nxg7 {[%clk 00:26:53]} {[%emt 00:00:59]} Rg8 {[%clk
00:49:46]} {[%emt 00:03:18]} 26. Ne6 {[%clk 00:23:30]} {[%emt 00:03:53]} Qd6
{[%clk 00:49:13]} {[%emt 00:01:03]} 27. Nxc5 {[%clk 00:23:20]} {[%emt
00:00:40]} bxc5 {[%clk 00:48:10]} {[%emt 00:01:32]} 28. Qxa5 {[%clk 00:22:57]}
{[%emt 00:00:54]} Nb6 {[%clk 00:48:10]} {[%emt 00:00:27]} 29. Rd1 {[%clk
00:20:19]} {[%emt 00:03:11]} Qe6 {[%clk 00:47:42]} {[%emt 00:00:58]} 30. Qb5
{[%clk 00:16:45]} {[%emt 00:04:04]} Re7 {[%clk 00:47:09]} {[%emt 00:01:03]} 0-1

[Event "South Island Championships 2023"]
[Site "Oamaru, New Zealand"]
[Date "2023.09.27"]
[Round "2.1"]
[White "Lukey, Stephen G"]
[Black "Kerr, Atlas"]
[Result "1-0"]
[TimeControl "90 + 30"]
[WhiteFideId "4300386"]
[BlackFideId "4319486"]
[WhiteElo "2307"]
[BlackElo "1853"]

1. d4 {[%clk 01:30:59]} {[%emt 00:00:01]} Nf6 {[%clk 01:30:49]} {[%emt
00:00:11]} 2. c4 {[%clk 01:31:25]} {[%emt 00:00:04]} c5 {[%clk 01:30:33]}
{[%emt 00:00:46]} 3. d5 {[%clk 01:31:49]} {[%emt 00:00:06]} g6 {[%clk
01:30:35]} {[%emt 00:00:28]} 4. Nc3 {[%clk 01:32:13]} {[%emt 00:00:05]} Bg7
{[%clk 01:30:27]} {[%emt 00:00:39]} 5. e4 {[%clk 01:30:50]} {[%emt 00:01:53]}
d6 {[%clk 01:30:42]} {[%emt 00:00:15]} 6. f4 {[%clk 01:25:35]} {[%emt
00:05:44]} O-O {[%clk 01:24:29]} {[%emt 00:06:43]} 7. Nf3 {[%clk 01:22:20]}
{[%emt 00:03:45]} Bg4 {[%clk 01:23:21]} {[%emt 00:01:38]} 8. Bd3 {[%clk
01:21:44]} {[%emt 00:01:06]} Nbd7 {[%clk 01:22:12]} {[%emt 00:01:39]} 9. O-O
{[%clk 01:22:00]} {[%emt 00:00:14]} e5 {[%clk 01:13:16]} {[%emt 00:09:27]} 10.
f5 {[%clk 01:19:44]} {[%emt 00:02:46]} gxf5 {[%clk 01:07:49]} {[%emt 00:05:57]}
11. exf5 {[%clk 01:19:55]} {[%emt 00:00:19]} Kh8 {[%clk 01:00:12]} {[%emt
00:08:07]} 12. Bg5 {[%clk 01:17:56]} {[%emt 00:02:29]} Rg8 {[%clk 00:57:36]}
{[%emt 00:03:06]} 13. Qe1 {[%clk 01:12:20]} {[%emt 00:06:05]} Qf8 {[%clk
00:54:09]} {[%emt 00:03:57]} 14. Qh4 {[%clk 01:12:02]} {[%emt 00:00:49]} Bh5
{[%clk 00:50:05]} {[%emt 00:04:34]} 15. Nd2 {[%clk 01:08:33]} {[%emt 00:03:59]}
h6 {[%clk 00:46:24]} {[%emt 00:04:12]} 16. Bxf6 {[%clk 01:08:41]} {[%emt
00:00:21]} Bxf6 {[%clk 00:44:43]} {[%emt 00:02:11]} 17. Qxh5 {[%clk 01:09:03]}
{[%emt 00:00:08]} Bg5 {[%clk 00:45:00]} {[%emt 00:00:13]} 18. Nde4 {[%clk
01:09:15]} {[%emt 00:00:17]} Be3+ {[%clk 00:44:52]} {[%emt 00:00:39]} 19. Kh1
{[%clk 01:09:40]} {[%emt 00:00:05]} Qg7 {[%clk 00:45:13]} {[%emt 00:00:09]} 20.
Qf3 {[%clk 01:09:39]} {[%emt 00:00:30]} Bd4 {[%clk 00:44:13]} {[%emt 00:01:30]}
21. f6 {[%clk 01:09:45]} {[%emt 00:00:24]} 1-0